bitfinex/quotes_BTCUSD_20240823
["timestamp","ask_amount","ask_price","bid_price","bid_amount"]
[1724428306914,0.95590601,61666.0,61665.0,0.002]
[1724428307121,0.79374301,61666.0,61665.0,0.002]
[1724428307416,0.60524301,61666.0,61665.0,0.002]
[1724428307631,0.60424301,61666.0,61665.0,0.001]
[1724428307807,1.09073301,61666.0,61665.0,0.001]
[1724428307958,1.08973301,61666.0,61665.0,0.001]
[1724428308162,1.68472384,61666.0,61665.0,0.001]
[1724428308361,2.50138182,61666.0,61665.0,0.001]
[1724428308570,2.50138182,61666.0,61652.0,0.00821]
[1724428308571,1.175075,61654.0,61652.0,0.00821]
[1724428308770,1.499465,61654.0,61652.0,0.00821]
[1724428309198,1.52490375,61654.0,61652.0,0.00821]
[1724428309874,1.84929375,61654.0,61652.0,0.00821]
[1724428310085,2.36807436,61654.0,61652.0,0.00821]
[1724428310281,2.09113072,61654.0,61652.0,0.00821]
[1724428310484,2.11334416,61654.0,61652.0,0.00821]
[1724428310684,2.03968436,61654.0,61652.0,0.00821]
[1724428310898,2.27632294,61654.0,61652.0,0.00821]
[1724428311101,2.28832294,61654.0,61652.0,0.00821]
[1724428311304,2.12534416,61654.0,61652.0,0.00821]
[1724428311505,2.11411237,61654.0,61652.0,0.00821]
[1724428311706,2.10111168,61654.0,61652.0,0.00821]
[1724428311891,2.01429673,61654.0,61652.0,0.00821]
[1724428312086,2.02829673,61654.0,61652.0,0.00821]
[1724428312288,2.02729673,61654.0,61652.0,0.00821]
[1724428312514,1.70290673,61654.0,61652.0,0.00821]
[1724428312736,1.55290375,61654.0,61652.0,0.00821]
[1724428313161,1.22851375,61654.0,61652.0,0.00821]
[1724428314600,1.21451375,61654.0,61652.0,0.00821]
[1724428314924,1.04701375,61654.0,61652.0,0.00821]
[1724428315313,1.05401375,61654.0,61652.0,0.00821]
[1724428315520,1.03901375,61654.0,61652.0,0.00821]
[1724428315973,1.06001375,61654.0,61652.0,0.00821]
[1724428316201,1.04601375,61654.0,61652.0,0.00821]
[1724428316609,0.51902375,61654.0,61652.0,0.00821]
[1724428316932,0.84341375,61654.0,61652.0,0.00821]
[1724428317143,0.03243875,61654.0,61652.0,0.00821]
[1724428317530,0.19463375,61654.0,61652.0,0.00821]
[1724428317709,0.18763375,61654.0,61652.0,0.00821]
[1724428317922,0.19363375,61654.0,61652.0,0.00821]
[1724428318129,0.03643875,61654.0,61652.0,0.00821]
[1724428319287,0.02543875,61654.0,61653.0,0.31512598]
[1724428319493,0.02843875,61654.0,61653.0,0.31512598]
[1724428319891,0.02843875,61654.0,61653.0,0.151123]
[1724428320359,0.19063375,61654.0,61653.0,0.000823]
[1724428320592,1.35330375,61654.0,61653.0,0.000823]
[1724428320815,0.51702375,61654.0,61653.0,0.000823]
[1724428321022,0.03043875,61654.0,61653.0,0.000823]
[1724428321198,0.19263375,61654.0,61653.0,0.000823]
[1724428321408,0.03043875,61654.0,61653.0,0.000823]
[1724428321601,0.03043875,61654.0,61653.0,0.32702398]
[1724428321838,0.03043875,61654.0,61653.0,0.80571998]
[1724428322113,0.03043875,61654.0,61653.0,1.41741598]
[1724428322114,0.005,61654.0,61653.0,1.41741598]
[1724428322310,0.005,61654.0,61653.0,1.76481198]
[1724428322727,0.005,61654.0,61653.0,1.76681198]
[1724428322931,0.002,61654.0,61653.0,2.09220798]
[1724428323146,0.002,61654.0,61653.0,2.12470798]
[1724428323353,0.001,61659.0,61658.0,1.485291]
[1724428323563,0.001,61659.0,61658.0,2.48664296]
[1724428323767,0.001,61659.0,61658.0,2.16227396]
[1724428323917,0.001,61659.0,61658.0,2.16127396]
[1724428324131,0.001,61659.0,61658.0,2.16227396]
[1724428324731,0.002,61659.0,61658.0,2.16527396]
[1724428324932,0.002,61659.0,61658.0,2.16427396]
[1724428325167,0.002,61659.0,61658.0,2.16527396]
[1724428325369,0.002,61659.0,61658.0,2.16127396]
[1724428325582,0.002,61659.0,61658.0,2.16427396]
[1724428325921,0.003,61659.0,61658.0,2.16827396]
[1724428327303,0.0009053,61668.0,61665.0,0.001]
[1724428327564,0.0009053,61668.0,61665.0,2.03714796]
[1724428327805,0.0009053,61668.0,61665.0,2.13714796]
[1724428328055,0.0009053,61668.0,61665.0,2.48448096]
[1724428328249,0.57594993,61666.0,61665.0,2.48648096]
[1724428328395,0.0009053,61668.0,61665.0,2.48648096]
[1724428328396,0.0009053,61668.0,61667.0,1.496949]
[1724428328594,0.0009853,61680.0,61679.0,0.486388]
[1724428328938,0.0009853,61680.0,61679.0,1.81188896]
[1724428329091,0.0009853,61680.0,61679.0,1.80988896]
[1724428330524,0.0009853,61680.0,61679.0,0.44913198]
[1724428330708,0.0009853,61680.0,61679.0,0.26866423]
[1724428330911,0.0009853,61680.0,61679.0,0.43079323]
[1724428331184,0.0009853,61680.0,61679.0,0.26866423]
[1724428331373,0.0019853,61680.0,61679.0,0.28266423]
[1724428331547,0.0019853,61680.0,61679.0,0.114]
[1724428331747,0.1641123,61680.0,61679.0,0.014]
[1724428331973,0.1641123,61680.0,61673.0,0.1]
[1724428331974,0.162133,61678.0,61677.0,0.00455594]
[1724428332216,0.162138,61676.0,61668.0,0.4683]
[1724428332339,0.1936,61678.0,61670.0,0.162152]
[1724428332539,0.162135,61677.0,61671.0,0.16400298]
[1724428332733,0.324275,61676.0,61668.0,0.47292034]
[1724428333012,0.162147,61673.0,61668.0,0.47292034]
[1724428333191,0.162156,61669.0,61668.0,0.00462034]
[1724428333385,0.3519,61671.0,61665.0,0.000823]
[1724428333596,0.48649,61666.0,61665.0,0.000823]
[1724428333756,0.996717,61666.0,61665.0,0.000823]
[1724428334816,0.996717,61666.0,61665.0,0.005823]
[1724428335431,0.996717,61666.0,61665.0,0.000823]
[1724428335646,0.996717,61666.0,61665.0,0.001823]
[1724428335847,0.996717,61666.0,61665.0,0.002823]
[1724428336267,0.99613146,61666.0,61665.0,0.002823]
[1724428336598,0.67180446,61666.0,61665.0,0.002823]
[1724428336857,0.99613146,61666.0,61665.0,0.002823]
[1724428337289,0.67180446,61666.0,61665.0,0.002823]
[1724428337444,0.67180446,61666.0,61665.0,0.000823]
[1724428337646,0.67180446,61666.0,61665.0,0.001823]
[1724428337911,0.68980446,61666.0,61665.0,0.002823]
[1724428338069,0.68180446,61666.0,61665.0,0.001823]
[1724428338268,0.68180446,61666.0,61665.0,0.000823]
[1724428338269,0.99613146,61666.0,61665.0,0.000823]
[1724428338544,1.00113146,61666.0,61665.0,0.000823]
[1724428338744,1.00713146,61666.0,61665.0,0.001823]
[1724428339359,1.00113146,61666.0,61665.0,0.000823]
[1724428340198,0.67680446,61666.0,61665.0,0.000823]
[1724428340472,1.44298386,61666.0,61665.0,0.000823]
[1724428340703,1.32045846,61666.0,61665.0,0.000823]
[1724428340910,1.32645846,61666.0,61665.0,0.001823]
[1724428341117,1.33145846,61666.0,61665.0,0.001823]
[1724428341348,1.32045846,61666.0,61665.0,0.000823]
[1724428341756,1.32045846,61666.0,61665.0,0.001823]
[1724428341757,1.00713146,61666.0,61665.0,0.001823]
[1724428341935,1.00213146,61666.0,61665.0,0.001823]
[1724428342163,1.00213146,61666.0,61665.0,0.000823]
[1724428342164,0.99613146,61666.0,61665.0,0.000823]
[1724428342512,1.00213146,61666.0,61665.0,0.001823]
[1724428342918,1.00713146,61666.0,61665.0,0.001823]
[1724428343294,1.33145846,61666.0,61665.0,0.001823]
[1724428343665,1.33236376,61666.0,61665.0,0.001823]
[1724428344085,1.32736376,61666.0,61665.0,0.001823]
[1724428344206,1.32136376,61666.0,61665.0,0.000823]
[1724428344409,1.32536376,61666.0,61665.0,0.000823]
[1724428344613,1.33036376,61666.0,61665.0,0.000823]
[1724428345455,1.32736376,61666.0,61665.0,0.001823]
[1724428345658,1.01203676,61666.0,61665.0,0.002823]
[1724428346174,0.67270976,61666.0,61665.0,0.000823]
[1724428346370,0.49680976,61666.0,61665.0,0.001823]
[1724428346565,0.82113676,61666.0,61665.0,0.001823]
[1724428346845,1.01503676,61666.0,61665.0,0.001823]
[1724428347037,1.33936376,61666.0,61665.0,0.001823]
[1724428347449,1.34836376,61666.0,61665.0,0.002823]
[1724428347649,1.33836376,61666.0,61665.0,0.000823]
[1724428347851,1.33836376,61666.0,61665.0,0.001823]
[1724428347852,1.34836376,61666.0,61665.0,0.001823]
[1724428348051,1.35736376,61666.0,61665.0,0.002823]
[1724428348315,1.33936376,61666.0,61665.0,0.001823]
[1724428348520,1.137365,61654.0,61653.0,0.000823]
[1724428348669,1.137365,61654.0,61651.0,0.0002]
[1724428348670,0.162198,61653.0,61652.0,0.004033]
[1724428348869,1.81532389,61653.0,61652.0,0.004033]
[1724428349274,1.8407656,61653.0,61652.0,0.004033]
[1724428349480,1.83752669,61653.0,61652.0,0.004033]
[1724428349882,1.34912771,61653.0,61652.0,0.004033]
[1724428350997,2.00102669,61653.0,61652.0,0.004033]
[1724428351197,2.01102669,61653.0,61652.0,0.006033]
[1724428351399,2.02002669,61653.0,61652.0,0.006033]
[1724428351576,2.01302669,61653.0,61652.0,0.004033]
[1724428351784,2.01202669,61653.0,61652.0,0.005033]
[1724428351987,1.54062771,61653.0,61652.0,0.006033]
[1724428352326,1.52462771,61653.0,61652.0,0.005033]
[1724428352521,1.51462771,61653.0,61652.0,0.004033]
[1724428352754,1.51262771,61653.0,61652.0,0.005033]
[1724428352968,1.52262771,61653.0,61652.0,0.005033]
[1724428353591,1.53162771,61653.0,61652.0,0.006033]
[1724428353766,1.69563069,61653.0,61652.0,0.006033]
[1724428353976,1.69863069,61653.0,61652.0,0.006033]
[1724428354177,2.01502669,61653.0,61652.0,0.005033]
[1724428354383,2.01202669,61653.0,61652.0,0.005033]
[1724428354600,2.01002669,61653.0,61652.0,0.005033]
[1724428355000,2.02002669,61653.0,61652.0,0.006033]
[1724428355412,2.01002669,61653.0,61652.0,0.005033]
[1724428355617,2.50040147,61653.0,61652.0,0.005033]
[1724428355818,2.02402669,61653.0,61652.0,0.006033]
[1724428358169,2.02002669,61653.0,61652.0,0.006033]
[1724428361874,1.85602371,61653.0,61652.0,0.006033]
[1724428364337,2.02002669,61653.0,61652.0,0.006033]
[1724428365529,2.34542269,61653.0,61652.0,0.006033]
[1724428365731,2.02202669,61653.0,61652.0,0.006033]
[1724428365942,2.02002669,61653.0,61652.0,0.006033]
[1724428367735,2.02093199,61653.0,61652.0,0.006033]
[1724428369263,1.85743199,61653.0,61652.0,0.006033]
[1724428370089,1.69342901,61653.0,61652.0,0.006033]
[1724428371027,1.85943199,61653.0,61652.0,0.006033]
[1724428371226,1.85743199,61653.0,61652.0,0.006033]
[1724428371637,1.85943199,61653.0,61652.0,0.006033]
[1724428371812,1.85743199,61653.0,61652.0,0.006033]
[1724428372384,1.69342901,61653.0,61652.0,0.006033]
[1724428373295,2.02241077,61653.0,61652.0,0.006033]
[1724428373495,2.04779976,61653.0,61652.0,0.006033]
[1724428373924,2.05079976,61653.0,61652.0,0.006033]
[1724428374442,1.88282098,61653.0,61652.0,0.006033]
[1724428375019,1.85743199,61653.0,61652.0,0.006033]
[1724428375581,1.88282045,61653.0,61652.0,0.006033]
[1724428375791,1.85943199,61653.0,61652.0,0.006033]
[1724428375901,1.88482116,61653.0,61652.0,0.006033]
[1724428376108,2.04979994,61653.0,61652.0,0.006033]
[1724428376382,1.88782116,61653.0,61652.0,0.006033]
[1724428376566,2.04912116,61653.0,61652.0,0.006033]
[1724428376918,2.05312116,61653.0,61652.0,0.006033]
[1724428377128,2.04912116,61653.0,61652.0,0.006033]
[1724428377328,2.04812116,61653.0,61652.0,0.006033]
[1724428378796,2.04812116,61653.0,61652.0,0.168273]
[1724428381780,1.88282116,61653.0,61652.0,0.168273]
[1724428382320,1.88782116,61653.0,61652.0,0.168273]
[1724428382559,1.9848002,61653.0,61652.0,0.168273]
[1724428382877,1.88482116,61653.0,61652.0,0.168273]
[1724428383078,1.98283021,61653.0,61652.0,0.168273]
[1724428383507,2.00704496,61653.0,61652.0,0.168273]
[1724428383664,2.00904496,61653.0,61652.0,0.168273]
[1724428383861,1.88782116,61653.0,61652.0,0.168273]
[1724428384220,1.88682116,61653.0,61652.0,0.168273]
[1724428384427,2.00412347,61653.0,61652.0,0.168273]
[1724428384627,1.88282116,61653.0,61652.0,0.168273]
[1724428384845,2.00712347,61653.0,61652.0,0.168273]
[1724428385076,2.40336031,61653.0,61652.0,0.168273]
[1724428385303,2.54645857,61653.0,61652.0,0.168273]
[1724428385978,2.47461716,61653.0,61652.0,0.168273]
[1724428386211,2.47561716,61653.0,61652.0,0.135833]
[1724428386434,2.47561716,61653.0,61652.0,0.006072]
[1724428386435,2.59693906,61653.0,61652.0,0.006072]
[1724428386645,2.59593906,61653.0,61652.0,0.006072]
[1724428386893,2.14722116,61653.0,61652.0,0.006072]
[1724428387103,2.15022116,61653.0,61652.0,0.006072]
[1724428387488,2.24829594,61653.0,61652.0,0.006072]
[1724428388543,2.15122116,61653.0,61652.0,0.006072]
[1724428389550,2.14722116,61653.0,61652.0,0.006072]
[1724428390061,2.42795252,61653.0,61652.0,0.006072]
[1724428390279,2.47561716,61653.0,61652.0,0.006072]
[1724428390783,2.47461716,61653.0,61652.0,0.006072]
[1724428391269,2.47561716,61653.0,61652.0,0.006072]
[1724428391937,2.14722116,61653.0,61652.0,0.006072]
[1724428392292,2.14722116,61653.0,61652.0,0.006895]
[1724428392493,2.47361716,61653.0,61652.0,0.006895]
[1724428392705,2.47561716,61653.0,61652.0,0.006895]
[1724428392912,2.15022116,61653.0,61652.0,0.006895]
[1724428393121,2.47261716,61653.0,61652.0,0.006895]
[1724428393297,2.15022116,61653.0,61652.0,0.006895]
[1724428393499,2.29576336,61653.0,61652.0,0.006895]
[1724428393715,2.62015936,61653.0,61652.0,0.006895]
[1724428393927,2.15022116,61653.0,61652.0,0.006895]
[1724428394124,2.14779994,61653.0,61652.0,0.006895]
[1724428394326,2.15079994,61653.0,61652.0,0.006895]
[1724428394531,2.29634214,61653.0,61652.0,0.006895]
[1724428394708,2.29734214,61653.0,61652.0,0.006895]
[1724428395077,2.47519594,61653.0,61652.0,0.006895]
[1724428395250,2.47619594,61653.0,61652.0,0.006895]
[1724428396467,2.47619594,61653.0,61652.0,1e-06]
[1724428396668,2.65059594,61653.0,61652.0,1e-06]
[1724428396872,1.789205,61652.0,61651.0,1e-06]
[1724428397080,1.789205,61652.0,61644.0,0.000823]
[1724428397081,0.458776,61645.0,61644.0,0.000823]
[1724428397292,2.28365523,61645.0,61644.0,0.000823]
[1724428397498,2.23225523,61645.0,61644.0,0.000823]
[1724428397725,1.94703097,61645.0,61644.0,0.000823]
[1724428398955,1.74693097,61645.0,61644.0,0.000823]
[1724428399610,1.76093097,61645.0,61644.0,0.000823]
[1724428399937,1.77493097,61645.0,61644.0,0.000823]
[1724428401343,1.45049297,61645.0,61644.0,0.000823]
[1724428401572,1.18648999,61645.0,61644.0,0.000823]
[1724428401728,1.18648999,61645.0,61644.0,0.001823]
[1724428401923,1.16110082,61645.0,61644.0,0.000823]
[1724428402154,1.25842572,61645.0,61644.0,0.000823]
[1724428402485,1.25842572,61645.0,61644.0,0.001823]
[1724428402624,1.25842572,61645.0,61644.0,0.000823]
[1724428403027,1.25842572,61645.0,61644.0,0.001823]
[1724428403505,1.25842572,61645.0,61644.0,0.000823]
[1724428403706,1.49050392,61645.0,61644.0,0.000823]
[1724428403935,1.81494192,61645.0,61644.0,0.000823]
[1724428404150,1.67493313,61645.0,61644.0,0.000823]
[1724428404357,1.30815425,61645.0,61644.0,0.000823]
[1724428404560,1.30815425,61645.0,61644.0,0.001823]
[1724428404766,1.25842549,61645.0,61644.0,0.000823]
[1724428405804,1.16110082,61645.0,61644.0,0.000823]
[1724428406183,1.23042621,61645.0,61644.0,0.000823]
[1724428406342,1.40842919,61645.0,61644.0,0.000823]
[1724428406533,1.3111038,61645.0,61644.0,0.000823]
[1724428406738,1.45815713,61645.0,61644.0,0.000823]
[1724428407103,1.35049503,61645.0,61644.0,0.000823]
[1724428407542,1.68639143,61645.0,61644.0,0.000823]
[1724428407958,1.83242264,61645.0,61644.0,0.000823]
[1724428408128,1.68639143,61645.0,61644.0,0.000823]
[1724428408717,2.01082943,61645.0,61644.0,0.000823]
[1724428409110,1.66116811,61645.0,61644.0,0.000823]
[1724428409316,1.66116811,61645.0,61644.0,0.363823]
[1724428409317,0.53761605,61645.0,61644.0,0.363823]
[1724428409533,0.53761605,61645.0,61644.0,0.69204698]
[1724428409534,0.05344882,61645.0,61644.0,0.69204698]
[1724428409730,0.05344882,61645.0,61644.0,1.01648998]
[1724428409935,0.028,61645.0,61644.0,1.36393298]
[1724428410144,0.04865875,61652.0,61651.0,0.491609]
[1724428410517,0.3252343,61666.0,61665.0,0.504566]
[1724428410518,0.0009053,61666.0,61665.0,0.504566]
[1724428410720,0.1630683,61666.0,61665.0,0.3424]
[1724428411126,0.8117223,61666.0,61665.0,0.3424]
[1724428411328,0.4873953,61666.0,61665.0,0.3404]
[1724428411539,1.1360493,61666.0,61665.0,0.3404]
[1724428411740,0.47558136,61666.0,61652.0,0.001]
[1724428411985,0.486585,61654.0,61652.0,0.001]
[1724428412181,0.81422891,61653.0,61652.0,0.001]
[1724428412354,0.35933183,61660.0,61648.0,0.3686]
[1724428412355,0.486625,61649.0,61648.0,0.3686]
[1724428412583,0.811042,61649.0,61648.0,0.3696]
[1724428413230,0.811042,61649.0,61648.0,0.3686]
[1724428413627,0.8364831,61649.0,61648.0,0.1618]
[1724428414361,0.0254411,61649.0,61644.0,0.000823]
[1724428414587,0.486657,61645.0,61644.0,0.000823]
[1724428414790,0.811095,61645.0,61644.0,0.000823]
[1724428414991,1.135533,61645.0,61644.0,0.000823]
[1724428415789,0.811095,61645.0,61644.0,0.000823]
[1724428416273,0.811095,61645.0,61644.0,0.001823]
[1724428416482,0.0254411,61649.0,61648.0,0.194]
[1724428416699,0.0254411,61649.0,61648.0,0.3506]
[1724428417369,0.324438,61645.0,61644.0,0.001823]
[1724428417591,0.815095,61645.0,61644.0,0.001823]
[1724428418224,0.811095,61645.0,61644.0,0.001823]
[1724428418632,0.814095,61645.0,61644.0,0.001823]
[1724428418843,0.486657,61645.0,61644.0,0.001823]
[1724428419296,0.489657,61645.0,61644.0,0.001823]
[1724428419517,0.811095,61645.0,61644.0,0.001823]
[1724428419701,0.814095,61645.0,61644.0,0.001823]
[1724428420118,0.811095,61645.0,61644.0,0.001823]
[1724428420301,0.812095,61645.0,61644.0,0.001823]
[1724428420510,0.491657,61645.0,61644.0,0.001823]
[1724428420706,0.816095,61645.0,61644.0,0.001823]
[1724428421068,0.812095,61645.0,61644.0,0.000823]
[1724428421465,1.30253598,61645.0,61644.0,0.000823]
[1724428421992,1.37537848,61645.0,61644.0,0.000823]
[1724428422165,1.30253598,61645.0,61644.0,0.000823]
[1724428422375,1.32792756,61645.0,61644.0,0.000823]
[1724428422579,1.42505089,61645.0,61644.0,0.000823]
[1724428422995,1.58902967,61645.0,61644.0,0.000823]
[1724428423227,1.9377485,61645.0,61644.0,0.000823]
[1724428423418,1.81634434,61645.0,61644.0,0.000823]
[1724428423624,1.65236556,61645.0,61644.0,0.000823]
[1724428424032,1.32792756,61645.0,61644.0,0.000823]
[1724428424226,1.136533,61645.0,61644.0,0.000823]
[1724428424447,1.78077397,61645.0,61644.0,0.001823]
[1724428424845,1.65936645,61645.0,61644.0,0.001823]
[1724428425020,1.84566645,61645.0,61644.0,0.000823]
[1724428425222,1.84566645,61645.0,61644.0,0.001823]
[1724428425223,1.85466645,61645.0,61644.0,0.001823]
[1724428425422,1.86366645,61645.0,61644.0,0.002823]
[1724428425789,1.85466645,61645.0,61644.0,0.001823]
[1724428426303,1.84566645,61645.0,61644.0,0.000823]
[1724428426716,1.85566645,61645.0,61644.0,0.001823]
[1724428427289,1.86866645,61645.0,61644.0,0.002823]
[1724428427603,1.85566645,61645.0,61644.0,0.001823]
[1724428427958,1.86866645,61645.0,61644.0,0.002823]
[1724428428992,1.34792845,61645.0,61644.0,0.002823]
[1724428429201,1.158533,61645.0,61644.0,0.002823]
[1724428429415,1.23136652,61645.0,61644.0,0.002823]
[1724428429593,1.20708719,61645.0,61644.0,0.002823]
[1724428429792,1.158533,61645.0,61644.0,0.002823]
[1724428429996,1.158533,61645.0,61644.0,0.003823]
[1724428430196,1.20650159,61645.0,61644.0,0.005823]
[1724428430399,1.20650148,61645.0,61644.0,0.005823]
[1724428430609,1.20650148,61645.0,61644.0,0.002823]
[1724428431250,1.37050446,61645.0,61644.0,0.002823]
[1724428432316,1.20650148,61645.0,61644.0,0.003823]
[1724428432517,1.15794727,61645.0,61644.0,0.003823]
[1724428434448,0.83350927,61645.0,61644.0,0.005823]
[1724428434603,0.83350927,61645.0,61644.0,0.003823]
[1724428434799,0.83350927,61645.0,61644.0,0.002823]
[1724428435023,0.83350927,61645.0,61644.0,0.005823]
[1724428435229,0.486712,61638.0,61637.0,0.33113411]
[1724428435438,0.486712,61638.0,61631.0,0.001023]
[1724428435439,0.486751,61633.0,61631.0,0.001023]
[1724428435862,0.83670117,61633.0,61631.0,0.001023]
[1724428436264,0.18769917,61633.0,61631.0,0.001023]
[1724428436461,0.02544917,61633.0,61631.0,0.001023]
[1724428436677,0.02544917,61633.0,61632.0,0.154223]
[1724428436864,0.02544917,61633.0,61632.0,0.156223]
[1724428436865,0.02644917,61633.0,61632.0,0.156223]
[1724428437630,0.02744917,61633.0,61632.0,0.156223]
[1724428437825,0.51420017,61633.0,61632.0,0.154223]
[1724428437999,0.51220017,61633.0,61632.0,0.154223]
[1724428438328,0.51220017,61633.0,61632.0,0.346023]
[1724428438571,0.51220017,61633.0,61632.0,0.348023]
[1724428438701,0.83670117,61633.0,61632.0,0.346023]
[1724428439084,0.83770117,61633.0,61632.0,0.000823]
[1724428439287,0.974503,61633.0,61632.0,0.000823]
[1724428439457,1.136753,61633.0,61632.0,0.000823]
[1724428440017,1.135753,61633.0,61632.0,0.000823]
[1724428440427,1.137753,61633.0,61632.0,0.000823]
[1724428440629,1.462254,61633.0,61632.0,0.000823]
[1724428441021,2.12554269,61633.0,61632.0,0.000823]
[1724428441223,2.54714564,61633.0,61632.0,0.000823]
[1724428441425,2.54814564,61633.0,61632.0,0.000823]
[1724428441639,2.45104369,61633.0,61632.0,0.000823]
[1724428442043,2.59682151,61633.0,61632.0,0.000823]
[1724428442480,2.45004369,61633.0,61632.0,0.000823]
[1724428442953,2.5628805,61633.0,61632.0,0.000823]
[1724428443184,2.15899415,61633.0,61632.0,0.001823]
[1724428443401,2.15999415,61633.0,61632.0,0.001823]
[1724428443733,2.16099415,61633.0,61632.0,0.001823]
[1724428444076,2.17199415,61633.0,61632.0,0.002823]
[1724428444698,1.812798,61627.0,61617.0,0.00823]
[1724428444980,1.63822471,61623.0,61617.0,0.00823]
[1724428445133,2.12678169,61623.0,61617.0,0.00823]
[1724428445342,2.55233569,61623.0,61617.0,0.00823]
[1724428445572,2.60319667,61623.0,61617.0,0.00823]
[1724428445824,2.72450009,61623.0,61622.0,1e-06]
[1724428446024,2.72450009,61623.0,61605.0,0.49229154]
[1724428446025,1.819054,61612.0,61605.0,0.49229154]
[1724428446200,2.36650381,61612.0,61605.0,0.49229154]
[1724428446456,2.46650381,61612.0,61603.0,0.00822]
[1724428446670,2.39374269,61612.0,61603.0,0.00822]
[1724428446883,2.39374269,61612.0,61604.0,0.002]
[1724428446884,1.90243069,61612.0,61604.0,0.002]
[1724428447101,1.73629177,61612.0,61607.0,0.002]
[1724428447300,1.73629177,61612.0,61605.0,0.199]
[1724428447413,2.07490377,61612.0,61603.0,0.00822]
[1724428447615,1.75029177,61612.0,61603.0,0.00822]
[1724428448061,1.73629177,61612.0,61603.0,0.00822]
[1724428448329,2.23888255,61612.0,61603.0,0.00822]
[1724428448501,2.44578255,61612.0,61603.0,0.00822]
[1724428449010,2.34426989,61612.0,61603.0,0.00822]
[1724428449165,2.28180377,61612.0,61603.0,0.00822]
[1724428449371,2.33019549,61612.0,61603.0,0.00822]
[1724428449592,2.34419549,61612.0,61603.0,0.00822]
[1724428450115,2.28180377,61612.0,61603.0,0.00822]
[1724428450328,2.44578255,61612.0,61603.0,0.00822]
[1724428450542,2.45978255,61612.0,61603.0,0.00822]
[1724428450745,2.29580377,61612.0,61603.0,0.00822]
[1724428451302,2.53600686,61612.0,61611.0,0.001023]
[1724428451504,2.46220377,61612.0,61611.0,0.001023]
[1724428451711,2.46020377,61612.0,61611.0,0.001023]
[1724428452411,2.44620377,61612.0,61611.0,0.001023]
[1724428452769,2.46020377,61612.0,61611.0,0.001023]
[1724428452894,2.44620377,61612.0,61611.0,0.001023]
[1724428453104,2.26780377,61612.0,61611.0,0.001023]
[1724428453311,2.28180377,61612.0,61611.0,0.001023]
[1724428453517,1.33960606,61612.0,61611.0,0.001023]
[1724428454476,1.35360606,61612.0,61611.0,0.001023]
[1724428454700,2.04269684,61612.0,61611.0,0.001023]
[1724428454833,2.12869684,61612.0,61611.0,0.001023]
[1724428455022,2.45330884,61612.0,61611.0,0.001023]
[1724428455519,2.45630884,61612.0,61611.0,0.001023]
[1724428455700,2.49230884,61612.0,61611.0,0.001023]
[1724428455901,2.47930884,61612.0,61611.0,0.001023]
[1724428456321,2.49330884,61612.0,61611.0,0.001023]
[1724428456511,2.31533006,61612.0,61611.0,0.001023]
[1724428456832,2.31333006,61612.0,61611.0,0.001023]
[1724428457034,2.31533006,61612.0,61611.0,0.001023]
[1724428457594,2.32933006,61612.0,61611.0,0.001023]
[1724428457814,2.31333006,61612.0,61611.0,0.001023]
[1724428458061,2.32733006,61612.0,61611.0,0.001023]
[1724428458236,2.32833006,61612.0,61611.0,0.001023]
[1724428458448,1.98182871,61604.0,61603.0,0.00822]
[1724428458621,2.14583169,61604.0,61603.0,0.00822]
[1724428459158,1.96109401,61604.0,61603.0,0.00822]
[1724428459807,1.98909401,61604.0,61603.0,0.00822]
[1724428460481,2.48314801,61604.0,61603.0,0.00822]
[1724428460686,2.58314801,61604.0,61603.0,0.00822]
[1724428460891,2.41374801,61604.0,61603.0,0.00822]
[1724428461452,2.39974801,61604.0,61603.0,0.00822]
[1724428461854,2.07509401,61604.0,61603.0,0.00822]
[1724428462758,2.56372679,61604.0,61603.0,0.00822]
[1724428462979,2.39974801,61604.0,61603.0,0.00822]
[1724428463227,2.41374801,61604.0,61603.0,0.00822]
[1724428463354,2.38574801,61604.0,61603.0,0.00822]
[1724428463555,2.39974801,61604.0,61603.0,0.00822]
[1724428463816,2.41374801,61604.0,61603.0,0.00822]
[1724428463988,2.39974801,61604.0,61603.0,0.00822]
[1724428464195,2.54972679,61604.0,61603.0,0.00822]
[1724428464398,2.56372679,61604.0,61603.0,0.00822]
[1724428464625,2.39974801,61604.0,61603.0,0.00822]
[1724428466770,2.41374801,61604.0,61603.0,0.00822]
[1724428467232,2.39974801,61604.0,61603.0,0.00822]
[1724428467645,1.98909401,61604.0,61603.0,0.00822]
[1724428468976,1.17575132,61604.0,61603.0,0.01022]
[1724428469177,1.17575132,61604.0,61603.0,0.20452]
[1724428469391,0.54044332,61604.0,61603.0,0.20452]
[1724428469607,0.20178932,61604.0,61603.0,0.20452]
[1724428469806,0.324625,61610.0,61605.0,0.1981]
[1724428470008,0.4675,61632.0,61607.0,0.1981]
[1724428470009,0.49229154,61621.0,61607.0,0.1981]
[1724428470218,0.02545902,61613.0,61607.0,0.1981]
[1724428470433,0.02545902,61613.0,61608.0,0.1558]
[1724428470636,0.02545902,61613.0,61612.0,0.002]
[1724428470973,0.02545902,61613.0,61612.0,0.3559]
[1724428471203,0.51236802,61613.0,61612.0,0.3539]
[1724428471407,0.18776202,61613.0,61612.0,0.3539]
[1724428471784,0.51236802,61613.0,61612.0,0.3539]
[1724428472419,0.83697402,61613.0,61612.0,0.3539]
[1724428472620,0.19976202,61613.0,61612.0,0.3539]
[1724428472851,0.03745902,61613.0,61612.0,0.3539]
[1724428472979,0.04145902,61613.0,61612.0,0.3559]
[1724428473181,0.02945902,61613.0,61612.0,1.33143298]
[1724428473384,0.02945902,61613.0,61612.0,1.67904498]
[1724428473624,0.162259,61630.0,61621.0,0.16228]
[1724428473830,0.162268,61627.0,61625.0,0.1537]
[1724428474411,0.0009053,61633.0,61625.0,0.1537]
[1724428474626,0.0009053,61633.0,61626.0,0.64903798]
[1724428474834,0.0009053,61633.0,61632.0,0.3162]
[1724428475457,0.0009053,61633.0,61632.0,0.64245598]
[1724428475880,0.0009053,61633.0,61632.0,0.48020298]
[1724428476715,0.02544769,61639.0,61638.0,0.811187]
[1724428476916,0.0009053,61653.0,61639.0,0.1537]
[1724428477119,0.0009053,61653.0,61638.0,0.49768869]